Workbook

Sheet MSU
B1: Jukka Werner | E1: 24.4.1980
B2: SUPERPESIS | E2: Runkosarja | I2: Kärkilyönnit (KL), pesänvälit | P2: Ylempi loppusarja | W2: Alempi loppusarja | AD2: Arvo-ottelut | AH2: Mitalit
B3: Vuosi | C3: Sija | D3: Seura | E3: OTT | F3: KUN | G3: LÖI | H3: TOI | I3: KL | J3: 0 > 1 | K3: 1 > 2 | L3: 2 > 3 | M3: 3 > k | N3: KL-% | P3: OTT | Q3: KUN | R3: LÖI | S3: TOI | T3: KL | U3: KL-% | W3: OTT | X3: KUN | Y3: LÖI | Z3: TOI | AA3: KL | AB3: KL-% | AD3: IL | AE3: LL | AF3: hSM | AG3: K | AH3: H | AI3: P
B4: 1998 | C4: 10. | D4: VäVi | F4: ykköspesis
B5: 1999 | C5: 13. | D5: VäVi | F5: ykköspesis
B6: 2000 | C6: 12. | D6: VäVi | F6: ykköspesis
B7: 2000 | C7: 13. | D7: KaMa | E7: 0 | F7: 0 | G7: 0 | H7: 0 | I7: 0 | J7: 0 | K7: 0 | L7: 0 | M7: 0 | N7: ---- | W7: 7 | X7: 0 | Y7: 1 | Z7: 1 | AA7: 17 | AB7: 45.9 %
B8: 2001 | C8: 14. | D8: PeTo | F8: ykköspesis
B9: 2002 | C9: 2. | D9: VäVi | F9: suomensarja
B10: 2003 | C10: 4. | D10: VäVi | F10: suomensarja
B11: 2004 | C11: 15. | D11: Lohi | F11: ykköspesis
B12: 2005 | C12: 1. | D12: Lohi | F12: suomensarja
B13: 2006
B14: 2007 | C14: 5. | D14: LMV | F14: suomensarja
B15: 2008 | C15: 5. | D15: LMV | F15: suomensarja
B16: Yhteensä | E16: 0 | F16: 0 | G16: 0 | H16: 0 | I16: 0 | J16: 0 | K16: 0 | L16: 0 | M16: 0 | P16: 0 | Q16: 0 | R16: 0 | S16: 0 | T16: 0 | U16: 0.0 % | W16: 7 | X16: 0 | Y16: 1 | Z16: 1 | AA16: 17 | AB16: 45.9 % | AD16: 0 | AE16: 0 | AF16: 0 | AG16: 0 | AH16: 0 | AI16: 0
B17: Pesispörssi | D17: 0.0
B19: URA SUPERISSA | E19: OTT | F19: KUN | G19: LÖI | H19: TOI | I19: KL | K19: ka/L | L19: ka/T | M19: ka/KL | N19: KL-% | P19: ENSIMMÄISET
B20: Runkosarja | P20: Ottelu | R20: 16.08. 2000 KaMa - KPL 2-1 (1-5, 4-3, 2-0) | AA20: 1. ottelu | AD20: 20 v 3 kk 23 pv | AG20: ALS
B21: Ylempi loppusarja | P21: Lyöty | R21: 16.08. 2000 KaMa - KPL 2-1 (1-5, 4-3, 2-0) | AA21: 1. ottelu | AD21: 20 v 3 kk 23 pv | AG21: ALS
B22: Alempi loppusarja | E22: 7 | F22: 0 | G22: 1 | H22: 1 | I22: 17 | K22: 0.14 | L22: 0.14 | M22: 2.43 | N22: 45.9 % | P22: Tuotu | R22: 02.09. 2000 HP - KaMa 1-2 (0-4, 3-2, 0-0, 2-4) | AA22: 5. ottelu | AD22: 20 v 4 kk 9 pv | AG22: ALS
B23: KAIKKI | E23: 7 | F23: 0 | G23: 1 | H23: 1 | I23: 17 | K23: 0.14 | L23: 0.14 | M23: 2.43 | N23: 45.9 % | P23: Kunnari
B25: Seurat | D25: VäVi = Vähänkyrön Viesti (1938), kasvattajaseura
D26: KaMa = Kankaanpään Maila (1958)
D27: PeTo = Peräseinäjoen Toive (1927)
D28: Lohi = Jyväskylän Lohi (1924)
D29: LMV = Lahden Mailaveikot (1929)

Sheet MYP, MSS
B1: Jukka Werner | E1: 24.4.1980
B2: YKKÖSPESIS | E2: Runkosarja | L2: Runkosarja TOP-10 | Q2: Jatkosarjat | X2: SUOMENSARJA | AA2: Runkosarja | AH2: Runkosarja TOP-10 | AM2: Jatkosarjat
B3: Vuosi | C3: Sija | D3: Seura | E3: OTT | F3: KUN | G3: LÖI | H3: TOI | I3: KL | J3: KL-% | L3: LÖI | M3: TOI | N3: L+T | O3: KL | Q3: OTT | R3: KUN | S3: LÖI | T3: TOI | U3: KL | V3: KL-% | X3: Vuosi | Y3: Sija | Z3: Seura | AA3: OTT | AB3: KUN | AC3: LÖI | AD3: TOI | AE3: KL | AF3: KL-% | AH3: LÖI | AI3: TOI | AJ3: L+T | AK3: KL | AM3: OTT | AN3: KUN | AO3: LÖI | AP3: TOI | AQ3: KL | AR3: KL-%
B4: 1998 | C4: 10. | D4: VäVi | E4: 23 | F4: 1 | G4: 4 | H4: 8 | I4: 65 | J4: 50.0 % | K4: 130
B5: 1999 | C5: 13. | D5: VäVi
B6: 2000 | C6: 12. | D6: VäVi | E6: 23 | F6: 0 | G6: 12 | H6: 15 | I6: 89 | J6: 55.3 % | K6: 161
B7: 2001 | C7: 14. | D7: PeTo | E7: 26 | F7: 0 | G7: 11 | H7: 4 | I7: 71 | J7: 43.6 % | K7: 163
X8: 2002 | Y8: 2. | Z8: VäVi | AA8: 18 | AB8: 0 | AC8: 4 | AD8: 32 | AE8: 118 | AF8: 72.8 % | AG8: 162 | AI8: 6. | AK8: 3. | AM8: 4 | AN8: 0 | AO8: 1 | AP8: 5 | AQ8: 26 | AR8: 66.7 % | AS8: 39
X9: 2003 | Y9: 4. | Z9: VäVi | AA9: 14 | AB9: 0 | AC9: 14 | AD9: 10 | AE9: 88 | AF9: 68.2 % | AG9: 129 | AK9: 8. | AM9: 2 | AN9: 0 | AO9: 1 | AP9: 0 | AQ9: 4 | AR9: 22.2 % | AS9: 18
B10: 2004 | C10: 15. | D10: Lohi | E10: 22 | F10: 0 | G10: 2 | H10: 13 | I10: 78 | J10: 55.7 % | K10: 140 | Q10: 1 | R10: 0 | S10: 0 | T10: 3 | U10: 2 | V10: 50.0 % | W10: 4
B11: 2005 | D11: Lohi | Q11: 2 | R11: 0 | S11: 1 | T11: 0 | U11: 6 | V11: 42.9 % | W11: 14 | X11: 2005 | Y11: 1. | Z11: Lohi | AA11: 18 | AB11: 0 | AC11: 5 | AD11: 31 | AE11: 76 | AF11: 63.3 % | AG11: 120 | AI11: 2. | AJ11: 7. | AM11: 4 | AN11: 0 | AO11: 2 | AP11: 1 | AQ11: 13 | AR11: 50.0 % | AS11: 26
X13: 2007 | Y13: 5. | Z13: LMV | AA13: 15 | AB13: 3 | AC13: 11 | AD13: 29 | AE13: 110 | AF13: 79.7 % | AG13: 138 | AK13: 3.
X14: 2008 | Y14: 5. | Z14: LMV | AA14: 14 | AB14: 0 | AC14: 5 | AD14: 17 | AE14: 78 | AF14: 67.2 % | AG14: 116 | AK14: 5.
B15: YHTEENSÄ | E15: =SUM(E4:E14) -> 94 | F15: =SUM(F4:F14) -> 1 | G15: =SUM(G4:G14) -> 29 | H15: =SUM(H4:H14) -> 40 | I15: =SUM(I4:I14) -> 303 | J15: =PRODUCT(I15/K15) -> 51.0 % | K15: =SUM(K4:K14) -> 594 | Q15: =SUM(Q4:Q14) -> 3 | R15: =SUM(R4:R14) -> 0 | S15: =SUM(S4:S14) -> 1 | T15: =SUM(T4:T14) -> 3 | U15: =SUM(U4:U14) -> 8 | V15: =PRODUCT(U15/W15) -> 44.4 % | W15: =SUM(W4:W14) -> 18 | X15: YHTEENSÄ | AA15: =SUM(AA4:AA14) -> 79 | AB15: =SUM(AB4:AB14) -> 3 | AC15: =SUM(AC4:AC14) -> 39 | AD15: =SUM(AD4:AD14) -> 119 | AE15: =SUM(AE4:AE14) -> 470 | AF15: =PRODUCT(AE15/AG15) -> 70.7 % | AG15: =SUM(AG4:AG14) -> 665 | AM15: =SUM(AM4:AM14) -> 10 | AN15: =SUM(AN4:AN14) -> 0 | AO15: =SUM(AO4:AO14) -> 4 | AP15: =SUM(AP4:AP14) -> 6 | AQ15: =SUM(AQ4:AQ14) -> 43 | AR15: =PRODUCT(AQ15/AS15) -> 51.8 % | AS15: =SUM(AS4:AS14) -> 83
B17: KAIKKI OTTELUT | E17: OTT | F17: KUN | G17: LÖI | H17: TOI | I17: KL | J17: KL-% | L17: ka/L | M17: ka/T | N17: ka/l+t | O17: ka/kl | R17: Seurat | T17: VäVi = Vähänkyrön Viesti (1938), kasvattajaseura
B18: SUPERPESIS | E18: 7 | F18: 0 | G18: 1 | H18: 1 | I18: 17 | J18: 45.9 % | K18: =PRODUCT(I18/J18) -> 37.03703704 | L18: =PRODUCT((F18+G18)/E18) -> 0.14 | M18: =PRODUCT(H18/E18) -> 0.14 | N18: =PRODUCT((F18+G18+H18)/E18) -> 0.29 | O18: =PRODUCT(I18/E18) -> 2.43 | T18: KaMa = Kankaanpään Maila (1958)
B19: YKKÖSPESIS | E19: =PRODUCT(E15+Q15) -> 97 | F19: =PRODUCT(F15+R15) -> 1 | G19: =PRODUCT(G15+S15) -> 30 | H19: =PRODUCT(H15+T15) -> 43 | I19: =PRODUCT(I15+U15) -> 311 | J19: =PRODUCT(I19/K19) -> 50.8 % | K19: =PRODUCT(K15+W15) -> 612 | L19: =PRODUCT((F19+G19)/E19) -> 0.32 | M19: =PRODUCT(H19/E19) -> 0.44 | N19: =PRODUCT((F19+G19+H19)/E19) -> 0.76 | O19: =PRODUCT(I19/E19) -> 3.21 | T19: PeTo = Peräseinäjoen Toive (1927)
B20: SUOMENSARJA | E20: =PRODUCT(AA15+AM15) -> 89 | F20: =PRODUCT(AB15+AN15) -> 3 | G20: =PRODUCT(AC15+AO15) -> 43 | H20: =PRODUCT(AD15+AP15) -> 125 | I20: =PRODUCT(AE15+AQ15) -> 513 | J20: =PRODUCT(I20/K20) -> 68.6 % | K20: =PRODUCT(AG15+AS15) -> 748 | L20: =PRODUCT((F20+G20)/E20) -> 0.52 | M20: =PRODUCT(H20/E20) -> 1.40 | N20: =PRODUCT((F20+G20+H20)/E20) -> 1.92 | O20: =PRODUCT(I20/E20) -> 5.76 | T20: Lohi = Jyväskylän Lohi (1924)
B21: YHTEENSÄ | E21: =SUM(E18:E20) -> 193 | F21: =SUM(F18:F20) -> 4 | G21: 74 | H21: 169 | I21: 841 | J21: =PRODUCT(I21/K21) -> 60.2 % | K21: =SUM(K18:K20) -> 1397.037037 | L21: =PRODUCT((F21+G21)/E21) -> 0.40 | M21: =PRODUCT(H21/E21) -> 0.88 | N21: =PRODUCT((F21+G21+H21)/E21) -> 1.28 | O21: =PRODUCT(I21/E21) -> 4.36 | T21: LMV = Lahden Mailaveikot (1929)

Sheet Arvo-ottelut
B1: ITÄ - LÄNSI - KORTTI
B2: Jukka Werner | C2: 24.4.1980
B3: C - POJAT | C3: Itä - Länsi, tulos | D3: Joukkue | E3: Seura | G3: V | H3: T | I3: H | J3: Up. | K3: Lj. | L3: Palk. | M3: O | N3: K | O3: L | P3: T | Q3: KL | R3: 1 | S3: 2 | T3: 3 | U3: k | V3: KL-% | W3: Pelinjohtaja | X3: Yleisöä
B4: 26.07. 1994 Tampere | C4: 13-23 | D4: Länsi | G4: 1 | M4: 1 | W4: Markku Lepola | X4: 300
